bitfinex/quotes_BTCUSD_20220303
["timestamp","ask_amount","ask_price","bid_price","bid_amount"]
[1646311042364,0.1921,43682.0,43665.0,0.01144]
[1646311042365,0.33288707,43681.0,43665.0,0.01144]
[1646311042571,0.0421,43680.0,43665.0,0.01144]
[1646311042766,0.24959137,43674.0,43665.0,0.28870768]
[1646311042966,0.60658897,43701.0,43700.0,0.87937315]
[1646311043219,0.60658897,43701.0,43665.0,0.32093368]
[1646311043220,2.20818767,43675.0,43665.0,0.32093368]
[1646311043414,2.20818767,43675.0,43664.0,0.81226204]
[1646311043415,0.0421,43674.0,43664.0,0.81226204]
[1646311043815,0.0421,43674.0,43665.0,0.34311204]
[1646311044012,0.0421,43674.0,43672.0,0.15554846]
[1646311045012,0.0421,43674.0,43673.0,0.23551101]
[1646311045212,0.0421,43674.0,43671.0,0.18131033]
[1646311045418,0.07586609,43674.0,43671.0,0.00021109]
[1646311045617,0.09088381,43674.0,43671.0,0.00021109]
[1646311045817,0.34311204,43673.0,43671.0,0.00021109]
[1646311046018,0.099407,43672.0,43671.0,0.00021109]
[1646311046220,0.44251904,43672.0,43661.0,0.01]
[1646311046421,0.44251904,43672.0,43670.0,0.0002111]
[1646311046618,0.099407,43672.0,43670.0,0.0002111]
[1646311047471,0.099407,43672.0,43671.0,0.16707808]
[1646311047669,0.094407,43672.0,43665.0,0.27635477]
[1646311048068,0.094407,43672.0,43664.0,0.15950226]
[1646311048471,0.094407,43672.0,43665.0,0.05729738]
[1646311048669,0.094407,43672.0,43664.0,0.15950226]
[1646311049072,0.094407,43672.0,43669.0,0.28472068]
[1646311049372,0.0421,43672.0,43669.0,0.28472068]
[1646311050071,0.0421,43672.0,43670.0,0.17722887]
[1646311050270,0.0421,43672.0,43671.0,0.19689851]
[1646311050905,0.03376609,43674.0,43671.0,0.19689851]
[1646311051105,0.03376609,43674.0,43671.0,0.31146756]
[1646311053103,0.03376609,43674.0,43672.0,0.19936876]
[1646311054395,0.005,43679.0,43673.0,0.264555]
[1646311054697,0.005,43679.0,43674.0,0.10129826]
[1646311055292,0.057276,43688.0,43678.0,0.188899]
[1646311055494,0.057276,43688.0,43678.0,0.24617991]
[1646311055691,0.34311204,43687.0,43678.0,0.24617991]
[1646311055992,0.060276,43688.0,43682.0,0.26080578]
[1646311056402,0.34311204,43687.0,43681.0,0.00020145]
[1646311056797,0.1,43686.0,43681.0,0.00020145]
[1646311056991,0.07235682,43683.0,43674.0,0.10129826]
[1646311057191,0.114587,43685.0,43681.0,0.00020145]
[1646311057992,0.117587,43685.0,43681.0,0.00020145]
[1646311058199,0.08775218,43685.0,43674.0,0.10129826]
[1646311058400,0.08775218,43685.0,43681.0,0.0001949]
[1646311058800,0.09977411,43685.0,43681.0,0.0001949]
[1646311059198,0.09677411,43685.0,43681.0,0.0001949]
[1646311059401,0.057289,43682.0,43674.0,0.10129826]
[1646311059599,0.057289,43682.0,43681.0,0.0001952]
[1646311059800,0.07219661,43682.0,43681.0,0.0001952]
[1646311060001,0.057289,43682.0,43681.0,0.0001952]
[1646311060200,0.3,43681.0,43674.0,0.10129826]
[1646311060400,0.099389,43682.0,43674.0,0.10129826]
[1646311060603,0.11181124,43679.0,43674.0,0.10129826]
[1646311061202,1.68139429,43677.0,43674.0,0.10129826]
[1646311061602,0.15246566,43676.0,43674.0,0.10129826]
[1646311062059,0.20976266,43676.0,43674.0,0.10129826]
[1646311062955,0.30976266,43676.0,43674.0,0.10129826]
[1646311063156,0.34162488,43675.0,43674.0,0.10129826]
[1646311063356,0.44162488,43675.0,43674.0,0.10129826]
[1646311063958,0.44462488,43675.0,43674.0,0.10129826]
[1646311065161,0.44162488,43675.0,43674.0,0.10129826]
[1646311065631,0.44162488,43675.0,43674.0,0.06829826]
[1646311065836,0.48372488,43675.0,43674.0,0.06829826]
[1646311066030,0.60233549,43675.0,43674.0,0.06829826]
[1646311066434,0.48672488,43675.0,43674.0,0.06829826]
[1646311066630,0.48672488,43675.0,43674.0,0.06811935]
[1646311067233,0.48372488,43675.0,43674.0,0.06811935]
[1646311067430,0.59933549,43675.0,43674.0,0.06811935]
[1646311068035,0.06172725,43673.0,43672.0,0.00020856]
[1646311068235,0.45385868,43673.0,43672.0,0.00020856]
[1646311068431,0.60632434,43673.0,43672.0,0.00020856]
[1646311068633,0.55385868,43673.0,43672.0,0.00020856]
[1646311068833,0.70632434,43673.0,43672.0,0.00020856]
[1646311069034,0.55385868,43673.0,43661.0,0.01]
[1646311069236,0.1,43672.0,43670.0,0.00020863]
[1646311069455,0.33923268,43671.0,43670.0,0.00020863]
[1646311069758,0.49654468,43671.0,43670.0,0.00020863]
[1646311070156,0.49654468,43671.0,43661.0,0.01]
[1646311070356,0.1421,43670.0,43668.0,0.00020863]
[1646311070557,0.33923268,43669.0,43668.0,0.00020863]
[1646311070755,0.54756268,43669.0,43668.0,0.00020863]
[1646311071358,0.54756268,43669.0,43661.0,0.01]
[1646311071556,0.114637,43667.0,43661.0,0.01]
[1646311071759,0.38133268,43666.0,43661.0,0.01]
[1646311072057,0.245583,43664.0,43661.0,0.01]
[1646311072261,0.33923268,43663.0,43661.0,0.01]
[1646311072656,0.1,43662.0,43661.0,0.01]
[1646311074202,0.1,43662.0,43661.0,0.005]
[1646311075106,0.13417655,43662.0,43661.0,0.005]
[1646311077958,0.13817655,43662.0,43661.0,0.005]
[1646311078758,0.03817655,43662.0,43661.0,0.005]
[1646311079259,0.03417655,43662.0,43661.0,0.005]
[1646311080061,0.03917655,43662.0,43661.0,0.005]
[1646311081302,0.03417655,43662.0,43661.0,0.005]
[1646311083103,0.58373628,43662.0,43661.0,0.005]
[1646311083304,0.58373628,43662.0,43659.0,0.00020847]
[1646311083305,0.114657,43661.0,43659.0,0.00020847]
[1646311083608,0.114657,43661.0,43651.0,0.6715]
[1646311083609,0.10289898,43660.0,43651.0,0.6715]
[1646311083804,0.057328,43658.0,43651.0,0.6715]
[1646311084003,0.0421,43657.0,43649.0,0.4494]
[1646311084206,0.0421,43657.0,43644.0,0.16145]
[1646311084460,0.0421,43657.0,43644.0,0.01145]
[1646311084461,0.114659,43655.0,43644.0,0.01145]
[1646311084663,0.0421,43654.0,43648.0,0.15]
[1646311085459,0.114659,43653.0,43644.0,0.01145]
[1646311085658,0.38133268,43658.0,43649.0,0.15]
[1646311085859,0.1,43657.0,43649.0,0.15]
[1646311086560,2.67438904,43651.0,43649.0,0.15]
[1646311086759,2.67438904,43651.0,43648.0,0.25625635]
[1646311086959,0.15246566,43650.0,43649.0,0.15]
[1646311087161,0.15246566,43650.0,43648.0,0.25625635]
[1646311087162,2.67438904,43651.0,43650.0,0.30493132]
[1646311088202,2.77438904,43651.0,43650.0,0.30493132]
[1646311088602,2.80944704,43651.0,43650.0,0.30493132]
[1646311089605,2.90946882,43651.0,43650.0,0.30493132]
[1646311089807,0.057336,43648.0,43643.0,0.00123936]
[1646311090007,0.057336,43648.0,43634.0,0.0417171]
[1646311090008,1.0,43646.0,43634.0,0.0417171]
[1646311090212,0.8,43644.0,43631.0,0.01]
[1646311090407,0.57887932,43643.0,43631.0,0.01]
[1646311090606,0.67887932,43643.0,43631.0,0.01]
[1646311090807,0.05736,43634.0,43631.0,0.01]
[1646311091012,0.0421,43633.0,43631.0,0.01]
[1646311092250,0.0421,43633.0,43631.0,0.00984177]
[1646311093851,0.07590087,43633.0,43631.0,0.00984177]
[1646311094650,0.11561061,43632.0,43631.0,0.00984177]
[1646311094852,0.11561061,43632.0,43631.0,0.21990916]
[1646311095151,0.11561061,43632.0,43631.0,0.27328151]
[1646311096011,0.11961061,43632.0,43631.0,0.27328151]
[1646311096210,0.11961061,43632.0,43631.0,0.46437779]
[1646311096809,0.004,43632.0,43631.0,0.46437779]
[1646311097014,0.004,43632.0,43631.0,0.68738779]
[1646311097210,0.05,43647.0,43631.0,0.68738779]
[1646311097409,0.70037391,43650.0,43644.0,0.057327]
[1646311097609,0.035058,43651.0,43643.0,0.15]
[1646311097811,0.114666,43649.0,43643.0,0.15]
[1646311098008,0.114666,43649.0,43645.0,0.00021583]
[1646311098609,0.5,43648.0,43645.0,0.00021583]
[1646311098807,0.004,43650.0,43645.0,0.00021583]
[1646311098808,0.118667,43650.0,43645.0,0.00021583]
[1646311099009,0.00394677,43648.0,43645.0,0.00021583]
[1646311099211,0.00394677,43648.0,43641.0,0.20521762]
[1646311099454,0.00394677,43648.0,43645.0,0.00021583]
[1646311100256,0.00394677,43648.0,43643.0,0.15]
[1646311100457,0.00394677,43648.0,43644.0,0.00020796]
[1646311101556,0.00394677,43648.0,43643.0,0.15]
[1646311101756,0.00394677,43648.0,43644.0,0.0002041]
[1646311101957,0.00794677,43648.0,43644.0,0.0002041]
[1646311102657,0.00794677,43648.0,43642.0,0.057331]
[1646311102857,0.00794677,43648.0,43644.0,0.0002041]
[1646311103308,0.00394677,43648.0,43644.0,0.0002041]
[1646311104014,0.00394677,43648.0,43643.0,0.114652]
[1646311104211,0.00394677,43648.0,43647.0,0.15]
[1646311104610,0.00394677,43648.0,43647.0,0.4075717]
[1646311105010,0.00394677,43648.0,43647.0,0.15]
[1646311105611,0.15650912,43648.0,43647.0,0.15]
[1646311105812,0.00394677,43648.0,43645.0,0.00020861]
[1646311106311,0.00394677,43648.0,43644.0,0.15]
[1646311106513,0.00394677,43648.0,43644.0,0.15020861]
[1646311106712,0.00394677,43648.0,43644.0,0.31183178]
[1646311107571,0.00394677,43648.0,43644.0,0.36895117]
[1646311107772,0.00394677,43648.0,43644.0,0.36915959]
[1646311108072,0.00394677,43648.0,43644.0,0.15020842]
[1646311108269,0.00794677,43648.0,43644.0,0.15020842]
[1646311108673,0.00794677,43648.0,43644.0,0.15]
[1646311108870,0.00794677,43648.0,43644.0,0.15020842]
[1646311109673,0.00394677,43648.0,43644.0,0.15020842]
[1646311109872,0.00394677,43648.0,43644.0,0.15]
[1646311110073,0.00694677,43648.0,43644.0,0.15020842]
[1646311110274,0.00694677,43648.0,43644.0,0.00020842]
[1646311110476,0.00694677,43648.0,43647.0,0.15]
[1646311111316,0.00394677,43648.0,43647.0,0.15]
[1646311111510,0.00394677,43648.0,43647.0,0.487504]
[1646311112109,0.00394677,43648.0,43647.0,0.936504]
[1646311112508,0.00394677,43648.0,43647.0,0.487504]
[1646311114110,0.00994677,43648.0,43647.0,0.487504]
[1646311115464,0.00394677,43648.0,43647.0,0.48740415]
[1646311115761,0.00394677,43648.0,43647.0,0.14990015]
[1646311115961,0.00894677,43648.0,43647.0,0.14990015]
[1646311118311,0.00894677,43648.0,43644.0,0.17197407]
[1646311118510,0.00894677,43648.0,43645.0,0.00020844]
[1646311119312,0.00394677,43648.0,43645.0,0.00020844]
[1646311119511,0.00394677,43648.0,43644.0,0.23609745]
[1646311119712,0.00394677,43648.0,43644.0,0.23630589]
[1646311119911,0.00394677,43648.0,43645.0,0.14990015]
[1646311120713,0.00394677,43648.0,43646.0,0.057328]
[1646311123067,0.03364796,43651.0,43648.0,0.19985528]
[1646311123269,0.03364796,43651.0,43649.0,0.14990015]
[1646311123966,2.62857413,43650.0,43649.0,0.14990015]
[1646311124268,0.03364796,43651.0,43649.0,0.14990015]
[1646311125267,0.03364796,43651.0,43649.0,0.36551917]
[1646311125469,0.03364796,43651.0,43649.0,0.14990015]
[1646311127409,0.03364796,43651.0,43648.0,0.00020843]
[1646311127612,0.14831196,43651.0,43648.0,0.00020843]
[1646311128012,0.14831196,43651.0,43647.0,0.057328]
[1646311128212,0.14831196,43651.0,43647.0,0.05753643]
[1646311128814,0.14831196,43651.0,43648.0,0.16563941]
[1646311129213,0.03364796,43651.0,43648.0,0.16563941]
[1646311129484,0.03364796,43651.0,43649.0,0.14990015]
[1646311130279,0.03327634,43651.0,43649.0,0.14990015]
[1646311130680,0.057331,43652.0,43649.0,0.14990015]
[1646311130882,0.113319,43656.0,43649.0,0.20722015]
[1646311131180,0.063319,43656.0,43655.0,0.14990015]
[1646311131381,0.057319,43656.0,43655.0,0.39374349]
[1646311131983,0.057319,43656.0,43655.0,0.14990015]
[1646311131984,0.061319,43656.0,43655.0,0.14990015]
[1646311132380,0.061319,43656.0,43653.0,0.00020841]
[1646311132782,0.061319,43656.0,43652.0,0.14990015]
[1646311132982,0.061319,43656.0,43653.0,0.26431677]
[1646311133201,0.057319,43656.0,43653.0,0.26431677]
[1646311134002,0.061319,43656.0,43655.0,0.19699468]
[1646311134803,0.061319,43656.0,43655.0,0.17412468]
[1646311135005,0.061319,43656.0,43655.0,0.15676468]
[1646311135204,0.057319,43656.0,43655.0,0.15676468]
[1646311137573,0.057319,43656.0,43655.0,0.30666483]
[1646311138774,0.057319,43656.0,43652.0,0.14990015]
[1646311138975,0.057319,43656.0,43653.0,0.00020841]
[1646311139974,0.057319,43656.0,43652.0,0.14990015]
[1646311140176,0.061319,43656.0,43652.0,0.00020841]
[1646311141045,2.40447839,43654.0,43652.0,0.00020841]
[1646311141246,2.40447839,43654.0,43648.0,0.21976541]
[1646311141446,2.40447839,43654.0,43652.0,0.00020842]
[1646311141447,0.15256235,43653.0,43652.0,0.00020842]
[1646311142447,0.15256235,43653.0,43650.0,0.057324]
[1646311142646,0.15256235,43653.0,43650.0,0.05753242]
[1646311142846,0.26169291,43656.0,43650.0,0.00020842]
[1646311142847,0.1,43655.0,43650.0,0.00020842]
[1646311143644,0.1,43655.0,43648.0,0.14990015]
[1646311143846,0.1,43655.0,43647.0,0.33454594]
[1646311143847,0.057319,43656.0,43650.0,0.00020842]
[1646311144045,0.057319,43656.0,43651.0,0.25687979]
[1646311144246,0.057319,43656.0,43651.0,0.60083908]
[1646311144464,0.057319,43656.0,43651.0,0.45093893]
[1646311144665,0.057319,43656.0,43651.0,0.60083908]
[1646311144868,0.057319,43656.0,43651.0,0.40677994]
[1646311145069,0.057319,43656.0,43651.0,0.40698836]
[1646311145365,0.057319,43656.0,43651.0,0.31441032]
[1646311145565,0.057319,43656.0,43651.0,0.05753053]
[1646311145766,0.057319,43656.0,43651.0,0.20743068]
[1646311145968,2.70834681,43653.0,43651.0,0.20722226]
[1646311146168,2.70834681,43653.0,43651.0,0.00020842]
[1646311146368,0.15256235,43652.0,43651.0,0.00020842]
[1646311146766,0.35293626,43652.0,43651.0,0.00020842]
[1646311147268,0.35293626,43652.0,43651.0,0.14990015]
[1646311148104,0.20037391,43652.0,43649.0,0.00020842]
[1646311148405,0.057328,43651.0,43647.0,0.48444609]
[1646311148605,0.057328,43651.0,43649.0,0.00020842]
[1646311149604,0.057328,43651.0,43647.0,0.20722536]
[1646311149805,0.057328,43651.0,43648.0,0.00020843]
[1646311150209,0.057328,43651.0,43650.0,0.14990015]
[1646311150506,0.09192209,43651.0,43649.0,0.057324]
[1646311150707,0.03459409,43651.0,43650.0,0.14990015]
[1646311151307,0.03459409,43651.0,43650.0,0.83990015]
[1646311151706,0.03459409,43651.0,43650.0,0.83730518]
[1646311152374,0.03459409,43651.0,43650.0,0.69]
[1646311152777,0.04191509,43655.0,43650.0,0.90294443]
[1646311153374,0.04191509,43655.0,43650.0,0.90315285]
[1646311153674,0.04191509,43655.0,43650.0,0.96047485]
[1646311153873,0.04191509,43655.0,43650.0,0.69020842]
[1646311154280,0.14191509,43655.0,43650.0,0.69]
[1646311154476,0.14191509,43655.0,43650.0,0.69020842]
[1646311155280,0.3961857,43655.0,43650.0,0.69020842]
[1646311155477,0.3961857,43655.0,43650.0,0.69]
[1646311155707,0.14191509,43655.0,43650.0,0.69020842]
[1646311156108,0.52638633,43655.0,43650.0,0.69020842]
[1646311156308,0.38047124,43654.0,43650.0,0.69020842]
[1646311156511,0.33171418,43653.0,43650.0,0.69020842]
[1646311156707,0.11561061,43651.0,43650.0,0.69]
[1646311156910,0.23028561,43651.0,43650.0,0.33792012]
[1646311157113,0.23028561,43651.0,43643.0,0.00083381]
[1646311157114,1.0,43650.0,43643.0,0.00083381]
[1646311157310,0.38126113,43648.0,43643.0,0.00083381]
[1646311157509,0.88861113,43646.0,43633.0,0.08987781]
[1646311157815,0.33361821,43638.0,43633.0,0.08987781]
[1646311158010,0.497643,43645.0,43633.0,0.08987781]
[1646311158011,0.33361821,43637.0,43635.0,0.28664786]
[1646311158212,0.49040821,43640.0,43635.0,0.28664786]
[1646311158410,0.33361821,43639.0,43633.0,0.08987781]
[1646311158611,0.76533239,43639.0,43633.0,0.057345]
[1646311158811,0.057345,43637.0,43630.0,0.1236]
[1646311159009,0.057345,43637.0,43626.0,0.6777]
[1646311159010,0.70743239,43636.0,43626.0,0.76757781]
[1646311159208,0.43361821,43635.0,43626.0,0.76757781]
[1646311159479,0.15683,43634.0,43626.0,0.37037781]
[1646311159877,0.15683,43634.0,43626.0,0.08987781]
[1646311160080,0.16083,43634.0,43623.0,0.1127]
[1646311160279,0.16083,43634.0,43624.0,0.057361]
[1646311160680,0.16083,43634.0,43624.0,0.08987781]
[1646311160878,0.16083,43634.0,43623.0,0.1127]
[1646311160879,0.31339235,43634.0,43623.0,0.1127]
[1646311161081,0.16083,43634.0,43625.0,0.2952263]
[1646311161279,0.31339235,43634.0,43625.0,0.2952263]
[1646311161479,0.15683,43634.0,43627.0,0.08987781]
[1646311161879,0.15683,43634.0,43630.0,0.00022362]
[1646311163714,0.25683,43634.0,43630.0,0.00022362]
[1646311163914,0.25683,43634.0,43627.0,0.057359]
[1646311163915,0.32179807,43634.0,43627.0,0.057359]
[1646311164114,0.32179807,43634.0,43630.0,0.00022362]
[1646311164115,0.11561061,43632.0,43630.0,0.00022362]
[1646311164314,1.0,43631.0,43630.0,0.00022362]
[1646311164619,1.63560294,43631.0,43630.0,0.00022362]
[1646311164918,0.0721803,43627.0,43624.0,0.00089461]
[1646311165115,0.08785132,43625.0,43621.0,0.01]
[1646311165314,0.37137964,43624.0,43621.0,0.01]
[1646311165519,0.37137964,43624.0,43612.0,0.5031]
[1646311165520,1.0421,43623.0,43612.0,0.5031]
[1646311165719,1.0421,43623.0,43612.0,0.1231]
[1646311165720,1.1421,43623.0,43612.0,0.1231]
[1646311166016,0.15256235,43622.0,43612.0,0.1231]
[1646311166216,0.37137964,43621.0,43612.0,0.1231]
[1646311166618,0.1,43620.0,43615.0,0.00012647]
[1646311166872,0.0421,43619.0,43610.0,0.0011]
[1646311167271,0.38711069,43619.0,43610.0,0.0011]
[1646311167672,0.1,43618.0,43610.0,0.0011]
[1646311167873,0.0421,43617.0,43610.0,0.0011]
[1646311168475,0.099483,43617.0,43610.0,0.0011]
[1646311169276,0.32927964,43616.0,43610.0,0.05848]
[1646311169477,0.0421,43615.0,43610.0,0.0011]
[1646311169675,0.1421,43615.0,43610.0,0.0011]
[1646311170078,0.1471,43615.0,43610.0,0.0011]
[1646311170278,0.1471,43615.0,43610.0,0.00123407]
[1646311170725,0.0471,43615.0,43610.0,0.05861507]
[1646311171128,0.0471,43615.0,43610.0,0.058481]
[1646311171326,0.0471,43615.0,43610.0,0.00132271]
[1646311171927,2.69897751,43611.0,43610.0,0.00132271]
[1646311172127,0.057381,43612.0,43610.0,0.27808518]
[1646311172329,0.1,43611.0,43610.0,0.0011]
[1646311173329,0.057381,43612.0,43610.0,0.0011]
[1646311174760,0.09231255,43612.0,43610.0,0.0011]
[1646311175577,0.15264431,43613.0,43610.0,0.33037964]
[1646311175764,0.01195758,43617.0,43610.0,0.33037964]
[1646311175962,0.00498158,43624.0,43610.0,0.33037964]
[1646311176166,0.1679,43628.0,43611.0,0.08987781]
[1646311176167,0.004,43618.0,43611.0,0.08987781]
[1646311176362,0.004,43618.0,43616.0,0.057366]
[1646311176663,0.5,43621.0,43618.0,0.95]
[1646311176866,0.00498158,43621.0,43620.0,0.53887781]
[1646311177060,0.00498158,43621.0,43620.0,0.86815745]
[1646311177262,0.05,43628.0,43621.0,1.02301]
[1646311177463,0.01195758,43634.0,43630.0,0.19610642]
[1646311177664,0.01195758,43634.0,43627.0,0.28987781]
[1646311177665,0.03934311,43629.0,43627.0,0.28987781]
[1646311177859,0.03934311,43629.0,43628.0,0.32963236]
[1646311178110,0.03934311,43629.0,43628.0,0.49895821]
[1646311178713,0.03934311,43629.0,43628.0,0.16932585]
[1646311178912,0.03934311,43629.0,43628.0,0.49895821]
[1646311179110,0.03934311,43629.0,43627.0,0.14722181]
[1646311179312,0.03934311,43629.0,43626.0,0.114687]
[1646311179811,0.03934311,43629.0,43624.0,0.08987781]
[1646311180013,0.03934311,43629.0,43624.0,0.14723481]
[1646311180213,0.04334311,43629.0,43624.0,0.14723481]
[1646311181412,0.03934311,43629.0,43624.0,0.14723481]
[1646311182761,0.03934311,43629.0,43625.0,0.1705606]
[1646311182962,0.03934311,43629.0,43624.0,0.14723481]
[1646311183866,0.03934311,43629.0,43624.0,0.14223481]
[1646311184062,0.03934311,43629.0,43625.0,0.19112521]
[1646311184263,0.04434311,43629.0,43625.0,0.19112521]
[1646311184662,0.04434311,43629.0,43626.0,0.32963236]
[1646311185265,0.04434311,43629.0,43626.0,0.20039247]
[1646311185465,0.03934311,43629.0,43626.0,0.20039247]
[1646311185717,0.03934311,43629.0,43628.0,0.08987781]
[1646311185921,0.03934311,43629.0,43628.0,0.41000737]
[1646311186524,0.03934311,43629.0,43628.0,0.43286803]
[1646311186719,0.001,43634.0,43628.0,0.43286803]
[1646311186720,0.001,43634.0,43633.0,0.249]
[1646311186922,0.001,43634.0,43633.0,0.53887781]
[1646311187421,0.00020707,43640.0,43633.0,0.74842043]
[1646311187623,0.057341,43639.0,43633.0,0.82435964]
[1646311187821,0.057341,43639.0,43634.0,0.14221381]
[1646311188223,0.057341,43639.0,43634.0,0.052336]
[1646311188719,0.057341,43639.0,43636.0,0.21430158]
[1646311189364,0.057341,43639.0,43634.0,0.052336]
[1646311190170,0.061341,43639.0,43636.0,0.20650418]
[1646311190370,0.061341,43639.0,43638.0,0.08987781]
[1646311190571,0.061341,43639.0,43638.0,0.27404656]
[1646311190871,0.061341,43639.0,43635.0,0.06577232]
[1646311191267,0.061341,43639.0,43634.0,0.052336]
[1646311191468,0.2099744,43639.0,43634.0,0.052336]
[1646311191872,0.057341,43639.0,43635.0,0.23566794]
[1646311192067,0.057341,43639.0,43634.0,0.052336]
[1646311194226,0.060341,43639.0,43634.0,0.052336]
[1646311194423,0.060341,43639.0,43634.0,0.666]
[1646311195424,0.057341,43639.0,43634.0,0.666]
[1646311196871,0.057341,43639.0,43634.0,0.114688]
[1646311197270,0.057341,43639.0,43635.0,0.06577232]
[1646311197470,0.057341,43639.0,43634.0,0.29946338]
[1646311197671,0.057341,43639.0,43634.0,0.114688]
[1646311198171,0.060341,43639.0,43634.0,0.114688]
[1646311198870,0.28530205,43638.0,43634.0,0.114688]
[1646311199672,0.44264305,43639.0,43634.0,0.114688]
[1646311200272,0.28830205,43638.0,43634.0,0.114688]
[1646311200626,0.28530205,43636.0,43633.0,0.04941817]
[1646311200827,0.28530205,43634.0,43633.0,0.04941817]
[1646311201228,0.28530205,43634.0,43626.0,0.81878332]
[1646311201229,0.057356,43633.0,43626.0,0.81878332]
[1646311201429,0.28558749,43631.0,43626.0,0.14048332]
[1646311201629,0.28558749,43631.0,43626.0,0.074711]
[1646311202030,0.28558749,43630.0,43626.0,0.074711]
[1646311203029,0.28558749,43629.0,43626.0,0.074711]
[1646311203228,0.057357,43628.0,43626.0,0.074711]
[1646311203630,0.157357,43628.0,43626.0,0.074711]
[1646311204033,0.44294449,43628.0,43626.0,0.074711]
[1646311204230,0.44594449,43628.0,43626.0,0.074711]
[1646311205073,0.44594449,43628.0,43626.0,0.02693891]
[1646311205474,0.44294449,43628.0,43626.0,0.02693891]
[1646311206075,0.44294449,43628.0,43622.0,0.06577232]
[1646311206276,0.28558749,43626.0,43621.0,0.114722]
[1646311206976,0.38558749,43627.0,43621.0,0.33904028]
[1646311207376,0.38558749,43627.0,43623.0,0.17150317]
[1646311207377,0.1,43627.0,43623.0,0.17150317]
[1646311208221,0.104,43627.0,43623.0,0.17150317]
[1646311208824,0.04829789,43629.0,43623.0,0.17150317]
[1646311209427,0.057357,43628.0,43623.0,0.17150317]
[1646311210025,2.08806593,43628.0,43623.0,0.17150317]
[1646311210225,0.061357,43628.0,43623.0,0.22886317]
[1646311210425,0.061357,43628.0,43623.0,0.17150317]
[1646311210823,0.061357,43628.0,43621.0,0.33882186]
[1646311210824,0.061357,43628.0,43621.0,0.114722]
[1646311211025,0.061357,43628.0,43619.0,0.06577232]
[1646311211625,0.061357,43628.0,43619.0,0.2784291]
[1646311211878,0.061357,43628.0,43619.0,0.23185562]
[1646311212081,0.3907089,43628.0,43619.0,0.23185562]
[1646311212278,0.1,43627.0,43619.0,0.23185562]
[1646311213078,0.1,43627.0,43620.0,0.22270234]
[1646311213880,0.1,43627.0,43621.0,0.16202765]
[1646311214180,0.1,43627.0,43620.0,0.22270234]
[1646311214379,0.1,43627.0,43619.0,0.23185562]
[1646311214781,0.4333519,43627.0,43619.0,0.23185562]
[1646311214981,0.4333519,43627.0,43620.0,0.057363]
[1646311215381,0.4333519,43627.0,43619.0,0.23185562]
[1646311215624,0.4333519,43627.0,43619.0,0.50494861]
[1646311215823,0.4333519,43627.0,43626.0,0.20921749]
[1646311216027,0.4333519,43627.0,43626.0,0.14989342]
[1646311216028,0.1,43627.0,43626.0,0.14989342]
[1646311216226,0.3333519,43628.0,43626.0,0.14989342]
[1646311217225,0.3,43631.0,43626.0,0.14989342]
[1646311217226,0.3333519,43629.0,43626.0,0.14989342]
[1646311217425,0.28577776,43627.0,43626.0,0.14989342]
[1646311217826,0.28577776,43627.0,43626.0,0.38687566]
[1646311218028,0.3333519,43629.0,43626.0,0.38687566]
[1646311218229,0.28579194,43627.0,43626.0,0.38687566]
[1646311218829,0.3333519,43629.0,43626.0,0.38687566]
[1646311219232,0.28580312,43627.0,43626.0,0.38687566]
[1646311219473,0.3333519,43629.0,43626.0,0.38687566]
[1646311219668,0.28580037,43627.0,43626.0,0.38687566]
[1646311219878,0.28580037,43627.0,43626.0,0.45264798]
[1646311220067,0.28580037,43628.0,43626.0,0.45264798]
[1646311220270,0.3,43631.0,43626.0,0.45264798]
[1646311220466,0.3,43631.0,43627.0,0.21979319]
[1646311220467,0.3333519,43630.0,43627.0,0.21979319]
[1646311220667,0.33666841,43630.0,43627.0,0.21979319]
[1646311220868,0.00331651,43630.0,43627.0,0.21979319]
[1646311221468,0.33666841,43630.0,43627.0,0.21979319]
[1646311221671,0.00331651,43630.0,43627.0,0.21979319]
[1646311221871,0.33666841,43630.0,43629.0,0.06577232]
[1646311222270,0.00331651,43630.0,43629.0,0.06577232]
[1646311222470,0.33666841,43630.0,43629.0,0.06577232]
[1646311222874,0.00331651,43630.0,43629.0,0.06577232]
[1646311223316,0.33666841,43630.0,43629.0,0.06577232]
[1646311223920,0.00331651,43630.0,43629.0,0.06577232]
[1646311224117,0.33666841,43630.0,43629.0,0.06577232]
[1646311224318,0.34166841,43630.0,43629.0,0.06577232]
[1646311225120,0.05060736,43630.0,43629.0,0.06577232]
[1646311225523,0.04560736,43630.0,43629.0,0.06577232]
[1646311225720,0.33682148,43630.0,43629.0,0.06577232]
[1646311226124,0.05151908,43630.0,43629.0,0.06577232]
[1646311226321,0.05651908,43630.0,43629.0,0.06577232]
[1646311226519,0.34182223,43630.0,43629.0,0.06577232]
[1646311226975,0.05651941,43630.0,43629.0,0.06577232]
[1646311227178,0.05652087,43630.0,43629.0,0.06577232]
[1646311227574,0.05152087,43630.0,43629.0,0.06577232]
[1646311228574,0.04922087,43630.0,43629.0,0.06577232]
[1646311228774,0.04820436,43630.0,43629.0,0.06577232]
[1646311231112,0.33351375,43630.0,43629.0,0.06577232]
[1646311231711,0.33351375,43630.0,43629.0,0.27679648]
[1646311231907,0.33351375,43630.0,43629.0,0.4896823]
[1646311232110,0.63351375,43631.0,43629.0,0.4896823]
[1646311232412,0.63351375,43631.0,43629.0,0.9960253]
[1646311232413,0.3,43631.0,43629.0,0.9960253]
[1646311232609,0.3,43631.0,43629.0,1.11070055]
[1646311234370,0.3,43631.0,43629.0,1.11170055]
[1646311234573,0.3,43631.0,43629.0,0.90067639]
[1646311235472,0.63351375,43631.0,43629.0,0.90067639]
[1646311235676,0.63351375,43631.0,43629.0,0.89967639]
[1646311236078,0.33351375,43630.0,43629.0,0.89967639]
[1646311236473,0.33351375,43630.0,43629.0,0.57211532]
[1646311236674,0.33351375,43630.0,43629.0,0.51477232]
[1646311238317,0.33751375,43630.0,43629.0,0.51477232]
[1646311238520,0.004,43630.0,43629.0,0.51477232]
[1646311239621,0.63351375,43631.0,43629.0,0.51477232]
[1646311239821,0.3,43631.0,43630.0,0.19943393]
[1646311240021,0.3,43631.0,43629.0,0.51477232]
[1646311240320,0.63351375,43631.0,43629.0,0.51477232]
[1646311240520,0.3,43631.0,43629.0,0.51477232]
[1646311240719,0.63351375,43631.0,43629.0,0.51477232]
[1646311241323,0.33351375,43630.0,43629.0,0.51477232]
[1646311241858,0.3,43631.0,43629.0,0.51477232]
[1646311241859,0.63351375,43631.0,43629.0,0.51477232]